fUSD/lending_fUSD_20240409
["ID","MTS","AMOUNT","RATE_DAILY","PERIOD"]
[321928912,1712639453298,-500.0,0.00020974,2]
[321928914,1712639453308,-500.0,0.00020974,2]
[321928916,1712639453317,-500.0,0.00020974,2]
[321928918,1712639453326,-500.0,0.00020974,2]
[321928920,1712639453335,-500.0,0.00020974,2]
[321928923,1712639453345,-520.15,0.00020974,2]
[321928925,1712639453354,-500.0,0.00020974,2]
[321928926,1712639453365,-518.61239936,0.00020974,2]
[321928929,1712639453375,-968.78,0.00020974,2]
[321928930,1712639453386,-500.0,0.00020974,2]
[321928933,1712639453396,-500.0,0.00020974,2]
[321928935,1712639453407,-500.0,0.00020974,2]
[321928936,1712639453417,-1000.75,0.00020974,2]
[321928938,1712639453427,-500.0,0.00020974,2]
[321928941,1712639453438,-794.51,0.00020974,2]
[321928943,1712639453449,-745.29,0.00020974,2]
[321928945,1712639453459,-500.0,0.00020974,2]
[321928947,1712639453470,-500.0,0.00020974,2]
[321928949,1712639453479,-500.0,0.00020974,2]
[321928951,1712639453489,-500.0,0.00020974,2]
[321928953,1712639453499,-402.96064892,0.00020975,2]
[321928954,1712639453509,-500.0,0.00020975,2]
[321928957,1712639453519,-500.0,0.00020975,2]
[321928959,1712639453528,-500.0,0.00020975,2]
[321928961,1712639453537,-500.0,0.00020975,2]
[321928963,1712639453547,-500.0,0.00020975,2]
[321928965,1712639453558,-237.33633521,0.00020975,2]
[321928966,1712639453567,-500.0,0.00020975,2]
[321928969,1712639453578,-497.38733183,0.00020975,2]
[321928971,1712639453588,-500.0,0.00020975,2]
[321928972,1712639453599,-500.0,0.00020975,2]
[321928974,1712639453609,-500.0,0.00020975,2]
[321928977,1712639453618,-500.0,0.00020975,2]
[321928979,1712639453629,-500.0,0.00020975,2]
[321928981,1712639453639,-500.0,0.00020975,2]
[321928983,1712639453650,-500.0,0.00020975,2]
[321928985,1712639453662,-518.65249635,0.00020975,2]
[321928986,1712639453673,-444.83109734,0.00020975,2]
[321928989,1712639453684,-412.27668031,0.00020975,2]
[321928991,1712639453694,-285.77804814,0.00020975,2]
[321928993,1712639453703,-498.48115019,0.00020975,2]
[321928995,1712639453713,-528.21657556,0.00020975,2]
[321928997,1712639453723,-547.95201507,0.00020975,2]
[321928999,1712639453733,-500.0,0.00020975,2]
[321929001,1712639453743,-500.0,0.00020975,2]
[321929003,1712639453753,-153.01200973,0.00020975,2]
[321929005,1712639453764,-205.16196336,0.00020975,2]
[321929007,1712639453773,-500.0,0.00020975,2]
[321929009,1712639453784,-314.72045289,0.00020975,2]
[321929011,1712639453795,-500.0,0.00020975,2]
[321929017,1712639453876,-504.46987788,0.00020975,2]
[321929018,1712639453885,-500.0,0.00020975,2]
[321929019,1712639453896,-500.0,0.00020975,2]
[321929021,1712639453905,-500.0,0.00020975,2]
[321929023,1712639453914,-524.22118967,0.00020975,2]
[321929025,1712639453923,-500.0,0.00020975,2]
[321929027,1712639453932,-500.0,0.00020975,2]
[321929029,1712639453943,-500.0,0.00020975,2]
[321929031,1712639453952,-506.45128578,0.00020975,2]
[321929033,1712639453960,-500.0,0.00020975,2]
[321929035,1712639453969,-500.0,0.00020975,2]
[321929037,1712639453978,-940.78,0.00020975,2]
[321929039,1712639453987,-500.0,0.00020975,2]
[321929041,1712639453997,-2089.69,0.00020975,2]
[321929043,1712639454006,-2405.44,0.00020975,2]
[321929045,1712639454015,-583.5,0.00020975,2]
[321929047,1712639454025,-1459.63,0.00020975,2]
[321929049,1712639454034,-1843.35,0.00020975,2]
[321929051,1712639454043,-1246.24,0.00020975,2]
[321929053,1712639454052,-1331.38,0.00020975,2]
[321929055,1712639454061,-1520.88,0.00020975,2]
[321929057,1712639454070,-1304.22,0.00020975,2]
[321929059,1712639454079,-500.0,0.00020975,2]
[321929061,1712639454088,-524.2010483,0.00020975,2]
[321929063,1712639454097,-1962.97,0.00020975,2]
[321929065,1712639454107,-1998.29,0.00020975,2]
[321929067,1712639454116,-2430.4,0.00020975,2]
[321929069,1712639454125,-500.0,0.00020975,2]
[321929072,1712639454139,-500.0,0.00020975,2]
[321929074,1712639454149,-500.0,0.00020975,2]
[321929076,1712639454158,-782.92,0.00020975,2]
[321929078,1712639454167,-1027.62,0.00020975,2]
[321929080,1712639454176,-500.0,0.00020975,2]
[321929082,1712639454185,-500.0,0.00020975,2]
[321929084,1712639454195,-500.0,0.00020975,2]
[321929086,1712639454204,-1366.33,0.00020975,2]
[321929088,1712639454214,-500.0,0.00020975,2]
[321929090,1712639454223,-750.22608652,0.00020975,2]
[321929239,1712639922273,721.76,0.00017987,2]
[321929241,1712640009618,275.53029391,0.00017897,2]
[321929248,1712640423833,685.67,0.0001788,2]
[321929347,1712640631811,-500.0,0.00019075,2]
[321929348,1712640631821,-503.33453693,0.00019075,2]
[321929349,1712640631831,-463.633,0.00019076,2]
[321929350,1712640631842,-8847.64776885,0.00019176,2]
[321929351,1712640631852,-161.77207194,0.00019693,2]
[321929352,1712640631861,-827.2,0.00019694,2]
[321929353,1712640631870,-1285.03,0.00019793,2]
[321929354,1712640631881,-221.63,0.00019798,2]
[321929355,1712640631891,-172.8,0.00019803,2]
[321929356,1712640631900,-157.84,0.00019946,2]
[321929357,1712640631910,-858.15283199,0.0002,2]
[321929358,1712640631919,-685.67,0.00020144,2]
[321929359,1712640631929,-625.80108729,0.00020166,2]
[321929360,1712640631938,-167.0,0.00020347,2]
[321929361,1712640631948,-152.0,0.00020625,3]
[321929362,1712640631957,-2169.7143,0.000207,2]
[321929363,1712640631966,-1453.9958,0.000207,2]
[321929364,1712640631975,-4229.8365,0.000207,2]
[321929365,1712640631986,-314.040914,0.00020708,2]
[321929366,1712640631996,-2893.7340502,0.00020711,2]
[321929367,1712640632006,-158.87549251,0.00020711,2]
[321929368,1712640632015,-1506.60971376,0.00020711,2]
[321929369,1712640632025,-314.040914,0.00020718,2]
[321929370,1712640632034,-1000.0,0.0002072,2]
[321929371,1712640632046,-36.21089647,0.00020721,2]
[321929372,1712640632090,-565.33803495,0.00020721,2]
[321929373,1712640632099,-570.65196505,0.00020721,2]
[321929392,1712640637996,-55.14912224,0.00020721,2]
[321929394,1712640638007,-1178.7148,0.00020721,2]
[321929396,1712640638018,-3139.7290466,0.00020721,2]
[321929398,1712640638032,-828.0657534,0.00020721,2]
[321929401,1712640638043,-314.040914,0.00020728,2]
[321929403,1712640638054,-314.040914,0.00020738,2]
[321929405,1712640638065,-314.040914,0.00020748,2]
[321929407,1712640638075,-314.040914,0.00020758,2]
[321929409,1712640638086,-314.040914,0.00020768,2]
[321929411,1712640638097,-727.54291,0.0002077,2]
[321929413,1712640638108,-157.040914,0.0002078,2]
[321929415,1712640638118,-242.58,0.0002079,2]
[321929418,1712640638130,-242.58,0.0002079,2]
[321929420,1712640638140,-242.58,0.0002079,2]
[321929422,1712640638151,-242.58,0.0002079,2]
[321929424,1712640638165,-242.58,0.0002079,2]
[321929426,1712640638176,-226.1720483,0.0002079,2]
[321929428,1712640638188,-531.25844407,0.00020798,2]
[321929430,1712640638199,-14683.0,0.00020799,2]
[321929433,1712640638211,-7467.0,0.00020799,2]
[321929435,1712640638222,-1015.0,0.000208,2]
[321929437,1712640638234,-1097399.64731909,0.000208,3]
[321929439,1712640638244,-481.6,0.000208,2]
[321929441,1712640638256,-242.58,0.00020811,2]
[321929444,1712640638266,-242.58,0.00020811,2]
[321929446,1712640638278,-226.1720483,0.00020811,2]
[321929448,1712640638289,-739.03819471,0.00020819,2]
[321929450,1712640638300,-500.0,0.00020819,2]
[321929452,1712640638311,-620.31159771,0.00020819,2]
[321929454,1712640638322,-225.17264053,0.0002082,2]
[321929456,1712640638333,-855.04167338,0.0002082,2]
[321929459,1712640638344,-959.05,0.0002082,2]
[321929461,1712640638356,-959.05,0.0002082,2]
[321929463,1712640638368,-959.05,0.0002082,2]
[321929465,1712640638380,-959.05,0.0002082,2]
[321929467,1712640638391,-959.05,0.0002082,2]
[321929469,1712640638402,-959.05,0.0002082,2]
[321929472,1712640638413,-959.05,0.0002082,2]
[321929474,1712640638424,-959.05,0.0002082,2]
[321929476,1712640638435,-959.05,0.0002082,2]
[321929478,1712640638446,-959.05,0.0002082,2]
[321929480,1712640638457,-959.05,0.0002082,2]
[321929482,1712640638467,-959.05,0.0002082,2]
[321929484,1712640638477,-959.05,0.0002082,2]
[321929487,1712640638488,-959.05,0.0002082,2]
[321929489,1712640638498,-959.05,0.0002082,2]
[321929491,1712640638508,-959.05,0.0002082,2]
[321929493,1712640638520,-959.05,0.0002082,2]
[321929495,1712640638531,-959.05,0.0002082,2]
[321929497,1712640638542,-959.05,0.0002082,2]
[321929500,1712640638551,-959.05,0.0002082,2]
[321929502,1712640638561,-959.05,0.0002082,2]
[321929504,1712640638572,-959.05,0.0002082,2]
[321929506,1712640638583,-959.05,0.0002082,2]
[321929508,1712640638593,-959.25596273,0.0002082,2]
[321929510,1712640638603,-31154.32,0.00020821,2]
[321929512,1712640638614,-201.48032446,0.00020821,2]
[321929514,1712640638624,-500.0,0.00020821,2]
[321929517,1712640638636,-500.0,0.00020821,2]
[321929519,1712640638647,-156.59155587,0.00020821,2]
[321929521,1712640638657,-500.0,0.00020821,2]
[321929523,1712640638668,-500.0,0.00020821,2]
[321929525,1712640638678,-185.15042036,0.00020821,2]
[321929527,1712640638689,-463.10495583,0.00020821,2]
[321929529,1712640638699,-500.0,0.00020821,2]
[321929531,1712640638709,-500.0,0.00020821,2]
[321929533,1712640638719,-501.94173886,0.00020821,2]
[321929536,1712640638729,-500.0,0.00020821,2]
[321929538,1712640638739,-500.0,0.00020821,2]
[321929540,1712640638749,-651.0,0.00020821,2]
[321929542,1712640638759,-316.55738173,0.00020821,2]
[321929544,1712640638769,-501.96579492,0.00020821,2]
[321929546,1712640638780,-500.0,0.00020821,2]
[321929548,1712640638791,-500.0,0.00020821,2]
[321929550,1712640638801,-560.19353163,0.00020821,2]
[321929552,1712640638812,-500.0,0.00020821,2]
[321929554,1712640638822,-500.0,0.00020821,2]
[321929557,1712640638834,-604.1,0.00020821,2]
[321929559,1712640638844,-500.0,0.00020821,2]
[321929561,1712640638856,-500.0,0.00020821,2]
[321929563,1712640638866,-500.0,0.00020821,2]
[321929565,1712640638877,-500.0,0.00020821,2]
[321929567,1712640638886,-568.37,0.00020821,2]
[321929569,1712640638897,-500.0,0.00020821,2]
[321929571,1712640638906,-500.0,0.00020821,2]
[321929573,1712640638916,-500.0,0.00020821,2]
[321929575,1712640638926,-593.55,0.00020821,2]
[321929578,1712640638937,-785.43,0.00020821,2]
[321929579,1712640638947,-500.0,0.00020821,2]
[321929580,1712640638958,-559.98,0.00020821,2]
[321929581,1712640638969,-500.0,0.00020821,2]
[321929582,1712640638979,-498.12381788,0.00020821,2]
[321929583,1712640638990,-500.0,0.00020821,2]
[321929585,1712640639001,-500.0,0.00020821,2]
[321929587,1712640639012,-500.0,0.00020821,2]
[321929589,1712640639022,-500.0,0.00020821,2]
[321929591,1712640639032,-500.0,0.00020821,2]
[321929593,1712640639042,-1215.57,0.00020821,2]
[321929595,1712640639052,-500.0,0.00020821,2]
[321929597,1712640639062,-500.0,0.00020821,2]
[321929599,1712640639072,-500.0,0.00020821,2]
[321929602,1712640639083,-500.0,0.00020821,2]
[321929604,1712640639093,-678.47,0.00020821,2]
[321929606,1712640639103,-500.0,0.00020821,2]
[321929608,1712640639113,-500.0,0.00020821,2]
[321929610,1712640639123,-589.5,0.00020821,2]
[321929612,1712640639134,-500.0,0.00020821,2]
[321929614,1712640639143,-500.0,0.00020821,2]
[321929617,1712640639155,-500.0,0.00020821,2]
[321929619,1712640639170,-500.0,0.00020821,2]
[321929621,1712640639180,-1264.58,0.00020821,2]
[321929623,1712640639191,-500.0,0.00020821,2]
[321929625,1712640639202,-500.0,0.00020821,2]
[321929630,1712640639213,-547.77448486,0.00020821,2]
[321929632,1712640639223,-754.24,0.00020821,2]
[321929635,1712640639234,-279.72533826,0.00020821,2]
[321929637,1712640639244,-500.0,0.00020821,2]
[321929639,1712640639255,-609.83,0.00020821,2]
[321929642,1712640639266,-849.53,0.00020821,2]
[321929644,1712640639276,-738.47,0.00020821,2]
[321929646,1712640639287,-500.0,0.00020821,2]
[321929648,1712640639297,-500.0,0.00020821,2]
[321929650,1712640639308,-500.0,0.00020821,2]
[321929652,1712640639318,-500.0,0.00020821,2]
[321929654,1712640639328,-500.0,0.00020821,2]
[321929656,1712640639338,-500.0,0.00020821,2]
[321929658,1712640639348,-500.0,0.00020821,2]
[321929660,1712640639358,-500.0,0.00020821,2]
[321929663,1712640639368,-1457.32,0.00020821,2]
[321929665,1712640639380,-500.0,0.00020821,2]
[321929667,1712640639390,-500.0,0.00020821,2]
[321929669,1712640639401,-980.36,0.00020821,2]
[321929671,1712640639411,-500.0,0.00020821,2]
[321929673,1712640639421,-500.0,0.00020821,2]
[321929676,1712640639432,-746.55,0.00020821,2]
[321929678,1712640639442,-500.0,0.00020821,2]
[321929680,1712640639452,-500.0,0.00020821,2]
[321929682,1712640639463,-500.0,0.00020821,2]
[321929684,1712640639474,-500.0,0.00020821,2]
[321929686,1712640639485,-500.0,0.00020821,2]
[321929689,1712640639496,-500.0,0.00020821,2]
[321929691,1712640639506,-500.0,0.00020821,2]
[321929693,1712640639516,-500.0,0.00020821,2]
[321929695,1712640639526,-500.0,0.00020821,2]
[321929697,1712640639537,-500.0,0.00020821,2]
[321929699,1712640639547,-500.0,0.00020821,2]
[321929701,1712640639558,-500.0,0.00020821,2]
[321929703,1712640639568,-739.51,0.00020821,2]
[321929706,1712640639579,-500.0,0.00020821,2]
[321929708,1712640639589,-500.0,0.00020821,2]
[321929710,1712640639599,-1169.81,0.00020821,2]
[321929712,1712640639610,-500.0,0.00020821,2]
[321929714,1712640639620,-500.0,0.00020821,2]
[321929716,1712640639632,-516.60042789,0.00020821,2]
[321929718,1712640639642,-1034.75,0.00020821,2]
[321929721,1712640639653,-500.0,0.00020821,2]
[321929723,1712640639663,-500.0,0.00020821,2]
[321929725,1712640639673,-500.0,0.00020821,2]
[321929727,1712640639684,-521.31,0.00020821,2]
[321929729,1712640639694,-836.59,0.00020821,2]
[321929731,1712640639704,-500.0,0.00020821,2]
[321929733,1712640639715,-500.0,0.00020821,2]
[321929736,1712640639725,-500.0,0.00020821,2]
[321929738,1712640639736,-500.0,0.00020821,2]
[321929740,1712640639746,-500.0,0.00020821,2]
[321929742,1712640639756,-500.0,0.00020821,2]
[321929744,1712640639767,-313.64290123,0.00020821,2]
[321929746,1712640639778,-500.0,0.00020821,2]
[321929748,1712640639790,-500.0,0.00020821,2]
[321929751,1712640639801,-500.0,0.00020821,2]
[321929753,1712640639812,-500.0,0.00020821,2]
[321929755,1712640639823,-500.0,0.00020821,2]
[321929757,1712640639833,-542.59582993,0.00020821,2]
[321929759,1712640639845,-212.15770893,0.00020821,2]
[321929761,1712640639856,-500.0,0.00020821,2]
[321929763,1712640639867,-500.0,0.00020821,2]
[321929764,1712640639879,-500.0,0.00020821,2]
[321929765,1712640639890,-500.0,0.00020821,2]
[321929766,1712640639900,-500.0,0.00020821,2]
[321929767,1712640639910,-546.29,0.00020821,2]
[321929769,1712640639920,-500.0,0.00020821,2]
[321929771,1712640639931,-500.0,0.00020821,2]
[321929773,1712640639942,-500.0,0.00020821,2]
[321929775,1712640639953,-500.0,0.00020821,2]
[321929777,1712640639963,-500.0,0.00020821,2]
[321929780,1712640639974,-542.97,0.00020821,2]
[321929782,1712640639985,-500.0,0.00020821,2]
[321929784,1712640639994,-500.0,0.00020821,2]
[321929786,1712640640005,-500.0,0.00020821,2]
[321929788,1712640640016,-500.0,0.00020821,2]
[321929790,1712640640026,-500.0,0.00020821,2]
[321929792,1712640640036,-500.0,0.00020821,2]
[321929794,1712640640047,-601.0,0.00020821,2]
[321929796,1712640640057,-737.31,0.00020821,2]
[321929799,1712640640068,-500.0,0.00020821,2]
[321929801,1712640640078,-500.0,0.00020821,2]
[321929803,1712640640088,-500.0,0.00020821,2]
[321929805,1712640640099,-500.0,0.00020821,2]
[321929807,1712640640109,-500.0,0.00020821,2]
[321929809,1712640640119,-500.0,0.00020821,2]
[321929811,1712640640132,-801.99,0.00020821,2]
[321929813,1712640640142,-500.0,0.00020821,2]
[321929815,1712640640155,-559.13,0.00020821,2]
[321929817,1712640640166,-500.0,0.00020821,2]
[321929820,1712640640176,-769.67,0.00020821,2]
[321929822,1712640640187,-732.26,0.00020821,2]
[321929824,1712640640197,-500.0,0.00020821,2]
[321929826,1712640640208,-842.09,0.00020821,2]
[321929828,1712640640218,-500.0,0.00020821,2]
[321929830,1712640640229,-500.0,0.00020821,2]
[321929832,1712640640240,-500.0,0.00020821,2]
[321929834,1712640640250,-552.48,0.00020821,2]
[321929836,1712640640260,-593.62,0.00020821,2]
[321929838,1712640640270,-500.0,0.00020821,2]
[321929841,1712640640281,-500.0,0.00020821,2]
[321929843,1712640640291,-500.0,0.00020821,2]
[321929845,1712640640302,-500.0,0.00020821,2]
[321929847,1712640640312,-500.0,0.00020821,2]
[321929849,1712640640323,-500.0,0.00020821,2]
[321929851,1712640640333,-500.0,0.00020821,2]
[321929853,1712640640344,-773.42,0.00020821,2]
[321929855,1712640640355,-500.0,0.00020821,2]
[321929857,1712640640365,-500.0,0.00020821,2]
[321929860,1712640640377,-500.0,0.00020821,2]
[321929862,1712640640388,-500.0,0.00020821,2]
[321929864,1712640640398,-500.0,0.00020821,2]
[321929866,1712640640408,-500.0,0.00020821,2]
[321929868,1712640640419,-1215.84,0.00020821,2]
[321929870,1712640640429,-500.0,0.00020821,2]
[321929872,1712640640439,-500.0,0.00020821,2]
[321929874,1712640640449,-500.0,0.00020821,2]
[321929876,1712640640459,-500.0,0.00020821,2]
[321929879,1712640640470,-500.0,0.00020821,2]
[321929881,1712640640481,-500.0,0.00020821,2]
[321929883,1712640640491,-500.0,0.00020821,2]
[321929885,1712640640501,-915.0,0.00020821,2]
[321929887,1712640640511,-570.08,0.00020821,2]
[321929889,1712640640524,-500.0,0.00020821,2]
[321929891,1712640640534,-500.0,0.00020821,2]
[321929963,1712640641335,-500.0,0.00020821,2]
[321929967,1712640641370,-500.0,0.00020821,2]
[321929969,1712640641392,-500.0,0.00020821,2]
[321929971,1712640641408,-598.38,0.00020821,2]
[321929973,1712640641418,-204.0905558,0.00020821,2]
[321929975,1712640641427,-500.0,0.00020821,2]
[321929977,1712640641437,-500.0,0.00020821,2]
[321929978,1712640641446,-504.03,0.00020821,2]
[321929980,1712640641456,-500.0,0.00020821,2]
[321929982,1712640641465,-500.0,0.00020821,2]
[321929983,1712640641474,-500.0,0.00020821,2]
[321929985,1712640641484,-500.0,0.00020821,2]
[321929986,1712640641494,-192.7,0.00020821,2]
[321929988,1712640641503,-505.12540249,0.00020821,2]
[321929990,1712640641513,-500.0,0.00020821,2]
[321929991,1712640641522,-500.0,0.00020821,2]
[321929993,1712640641531,-646.82,0.00020821,2]
[321929995,1712640641540,-530.94,0.00020821,2]
[321929996,1712640641550,-632.01081284,0.00020821,2]
[321929998,1712640641559,-978.39,0.00020821,2]
[321930000,1712640641568,-925.99,0.00020821,2]
[321930001,1712640641578,-500.0,0.00020821,2]
[321930003,1712640641587,-500.0,0.00020821,2]
[321930005,1712640641596,-579.91352358,0.00020821,2]
[321930006,1712640641606,-564.79,0.00020821,2]
[321930008,1712640641615,-500.0,0.00020821,2]
[321930010,1712640641624,-500.0,0.00020821,2]
[321930011,1712640641634,-500.0,0.00020821,2]
[321930013,1712640641643,-941.18,0.00020821,2]
[321930015,1712640641652,-730.45,0.00020821,2]
[321930016,1712640641662,-515.98,0.00020821,2]
[321930018,1712640641671,-500.0,0.00020821,2]
[321930020,1712640641680,-787.57,0.00020821,2]
[321930021,1712640641689,-2104.91,0.00020821,2]
[321930023,1712640641698,-500.0,0.00020821,2]
[321930025,1712640641707,-1066.94,0.00020821,2]
[321930027,1712640641716,-500.0,0.00020821,2]
[321930028,1712640641725,-1679.43,0.00020821,2]
[321930029,1712640641735,-748.3,0.00020821,2]
[321930030,1712640641744,-500.0,0.00020821,2]
[321930031,1712640641754,-500.0,0.00020821,2]
[321930032,1712640641763,-620.17810724,0.00020821,2]
[321930033,1712640641773,-500.0,0.00020821,2]
[321930034,1712640641783,-862.48,0.00020821,2]
[321930035,1712640641793,-500.0,0.00020821,2]
[321930036,1712640641804,-500.0,0.00020821,2]
[321930038,1712640641813,-901.58,0.00020821,2]
[321930039,1712640641823,-971.56,0.00020821,2]
[321930041,1712640641833,-1013.18,0.00020821,2]
[321930043,1712640641842,-500.0,0.00020821,2]
[321930045,1712640641851,-517.03807486,0.00020821,2]
[321930047,1712640641860,-1164.62,0.00020821,2]
[321930049,1712640641870,-500.0,0.00020821,2]
[321930051,1712640641879,-1387.28,0.00020821,2]
[321930053,1712640641889,-564.21,0.00020821,2]
[321930055,1712640641898,-500.0,0.00020821,2]
[321930057,1712640641908,-521.14,0.00020821,2]
[321930059,1712640641917,-500.0,0.00020821,2]
[321930061,1712640641927,-500.0,0.00020821,2]
[321930063,1712640641938,-500.0,0.00020821,2]
[321930065,1712640641947,-500.0,0.00020821,2]
[321930067,1712640641957,-500.0,0.00020821,2]
[321930069,1712640641967,-953.21,0.00020821,2]
[321930071,1712640641976,-500.0,0.00020821,2]
[321930073,1712640641986,-500.0,0.00020821,2]
[321930075,1712640641996,-749.84,0.00020821,2]
[321930077,1712640642006,-500.0,0.00020821,2]
[321930079,1712640642016,-846.06,0.00020821,2]
[321930081,1712640642026,-500.0,0.00020821,2]
[321930083,1712640642035,-2002.62,0.00020821,2]
[321930085,1712640642044,-500.0,0.00020821,2]
[321930087,1712640642055,-500.0,0.00020821,2]
[321930089,1712640642065,-1833.79,0.00020821,2]
[321930091,1712640642074,-500.0,0.00020821,2]
[321930092,1712640642083,-500.0,0.00020821,2]
[321930095,1712640642093,-625.63,0.00020821,2]
[321930097,1712640642102,-500.0,0.00020821,2]
[321930099,1712640642113,-737.95,0.00020821,2]
[321930100,1712640642122,-707.95,0.00020821,2]
[321930102,1712640642133,-579.57,0.00020821,2]
[321930105,1712640642142,-2072.04,0.00020821,2]
[321930106,1712640642152,-554.71,0.00020821,2]
[321930109,1712640642165,-500.0,0.00020821,2]
[321930111,1712640642174,-653.14,0.00020821,2]
[321930113,1712640642184,-500.0,0.00020821,2]
[321930115,1712640642194,-722.49,0.00020821,2]
[321930118,1712640642204,-1503.32,0.00020821,2]
[321930121,1712640642214,-500.0,0.00020821,2]
[321930124,1712640642224,-500.0,0.00020821,2]
[321930127,1712640642235,-500.0,0.00020821,2]
[321930129,1712640642248,-495.25607,0.00020821,2]
[321930132,1712640642258,-537.78,0.00020821,2]
[321930135,1712640642268,-500.0,0.00020821,2]
[321930137,1712640642278,-1899.27,0.00020821,2]
[321930139,1712640642288,-500.0,0.00020821,2]
[321930141,1712640642297,-2305.22,0.00020821,2]
[321930143,1712640642307,-500.0,0.00020821,2]
[321930146,1712640642316,-500.0,0.00020821,2]
[321930148,1712640642326,-1575.77,0.00020821,2]
[321930151,1712640642335,-500.0,0.00020821,2]
[321930154,1712640642344,-532.07,0.00020821,2]
[321930157,1712640642354,-500.0,0.00020821,2]
[321930160,1712640642363,-500.0,0.00020821,2]
[321930164,1712640642373,-500.0,0.00020821,2]
[321930167,1712640642383,-582.34,0.00020821,2]
[321930171,1712640642393,-500.0,0.00020821,2]
[321930175,1712640642402,-501.71015575,0.00020821,2]
[321930178,1712640642411,-800.43,0.00020821,2]
[321930181,1712640642421,-500.0,0.00020821,2]
[321930185,1712640642430,-1081.95,0.00020821,2]
[321930188,1712640642439,-3026.68,0.00020821,2]
[321930191,1712640642448,-500.0,0.00020821,2]
[321930194,1712640642458,-500.0,0.00020821,2]
[321930197,1712640642467,-559.19,0.00020821,2]
[321930200,1712640642477,-508.72415993,0.00020821,2]
[321930203,1712640642486,-500.0,0.00020821,2]
[321930206,1712640642496,-500.0,0.00020821,2]
[321930209,1712640642505,-500.0,0.00020821,2]
[321930212,1712640642515,-500.0,0.00020821,2]
[321930215,1712640642525,-692.61,0.00020821,2]
[321930218,1712640642534,-645.23,0.00020821,2]
[321930221,1712640642543,-271.41627204,0.00020821,2]
[321930224,1712640642553,-1019.08,0.00020821,2]
[321930226,1712640642562,-500.0,0.00020821,2]
[321930228,1712640642572,-500.0,0.00020821,2]
[321930230,1712640642581,-500.0,0.00020821,2]
[321930232,1712640642590,-1766.55,0.00020821,2]
[321930234,1712640642601,-500.0,0.00020821,2]
[321930236,1712640642610,-1348.45,0.00020821,2]
[321930238,1712640642619,-500.0,0.00020821,2]
[321930240,1712640642629,-949.47,0.00020821,2]
[321930242,1712640642639,-500.0,0.00020821,2]
[321930244,1712640642648,-500.0,0.00020821,2]
[321930246,1712640642658,-500.0,0.00020821,2]
[321930248,1712640642667,-823.72,0.00020821,2]
[321930250,1712640642677,-500.0,0.00020821,2]
[321930252,1712640642686,-514.24,0.00020821,2]
[321930254,1712640642695,-500.0,0.00020821,2]
[321930256,1712640642705,-500.0,0.00020821,2]
[321930258,1712640642715,-1275.9,0.00020821,2]
[321930260,1712640642724,-500.0,0.00020821,2]
[321930262,1712640642734,-199.32786475,0.00020821,2]
[321930264,1712640642743,-1871.04,0.00020821,2]